[Event "Titled Tuesday Blitz July 20 2021"]
[White "Bach, Ngoc Thuy Duong"]
[Black "Ouellet, Maili-Jade"]
[WhiteFideId "12408956"]
[BlackFideId "2620472"]
[WhiteElo "1896"]
[BlackElo "1886"]
[Result "0-1"]
[Round "09"]
[TimeControl "180+1"]
[Date "2021.07.21"]
[WhiteClock "0:00:01"]
[BlackClock "0:00:05"]

1. d4 {[%clk 0:03:00]}  d5 {[%clk 0:02:59]} 2. c4 {[%clk 0:02:59]}  e6 {[%clk 0:03:00]} 3. Nc3 {[%clk 0:02:59]}  Nf6 {[%clk 0:03:00]} 4. cxd5 {[%clk 0:02:59]}  exd5 {[%clk 0:03:00]} 5. Bg5 {[%clk 0:02:59]}  Be7 {[%clk 0:03:00]} 6. Qc2 {[%clk 0:02:59]}  O-O {[%clk 0:03:00]} 7. e3 {[%clk 0:02:59]}  c6 {[%clk 0:03:00]} 8. Bd3 {[%clk 0:02:59]}  Nbd7 {[%clk 0:03:01]} 9. Nf3 {[%clk 0:02:58]}  Re8 {[%clk 0:03:01]} 10. O-O {[%clk 0:02:57]}  Nf8 {[%clk 0:03:01]} 11. Ne5 {[%clk 0:02:55]}  Ne4 {[%clk 0:02:37]} 12. Bf4 {[%clk 0:01:52]}  f6 {[%clk 0:02:09]} 13. Nf3 {[%clk 0:01:43]}  f5 {[%clk 0:02:03]} 14. Ne5 {[%clk 0:01:34]}  Ng6 {[%clk 0:02:02]} 15. f3 {[%clk 0:01:14]}  Nxf4 {[%clk 0:01:52]} 16. exf4 {[%clk 0:01:02]}  Nd6 {[%clk 0:01:51]} 17. b4 {[%clk 0:00:47]}  g6 {[%clk 0:01:42]} 18. Rab1 {[%clk 0:00:35]}  Qb6 {[%clk 0:01:31]} 19. Qf2 {[%clk 0:00:27]}  a6 {[%clk 0:01:23]} 20. a4 {[%clk 0:00:20]}  Be6 {[%clk 0:00:36]} 21. a5 {[%clk 0:00:18]}  Qc7 {[%clk 0:00:33]} 22. Na4 {[%clk 0:00:18]}  Rad8 {[%clk 0:00:30]} 23. Nc5 {[%clk 0:00:18]}  Bf7 {[%clk 0:00:29]} 24. Rfe1 {[%clk 0:00:18]}  Bf6 {[%clk 0:00:26]} 25. Qc2 {[%clk 0:00:14]}  Nc4 {[%clk 0:00:21]} 26. Bxc4 {[%clk 0:00:13]}  dxc4 {[%clk 0:00:21]} 27. Nxf7 {[%clk 0:00:13]}  Bxd4+ {[%clk 0:00:19]} 28. Kh1 {[%clk 0:00:13]}  Qxf7 {[%clk 0:00:19]} 29. Rxe8+ {[%clk 0:00:13]}  Rxe8 {[%clk 0:00:20]} 30. Rd1 {[%clk 0:00:13]}  Bxc5 {[%clk 0:00:17]} 31. bxc5 {[%clk 0:00:14]}  Qd5 {[%clk 0:00:16]} 32. h3 {[%clk 0:00:11]}  Qxc5 {[%clk 0:00:16]} 33. Qc3 {[%clk 0:00:11]}  Re7 {[%clk 0:00:15]} 34. Rd8+ {[%clk 0:00:10]}  Kf7 {[%clk 0:00:15]} 35. Rh8 {[%clk 0:00:08]}  Qd5 {[%clk 0:00:10]} 36. Rxh7+ {[%clk 0:00:08]}  Ke8 {[%clk 0:00:10]} 37. Rh8+ {[%clk 0:00:06]}  Kd7 {[%clk 0:00:10]} 38. Rb8 {[%clk 0:00:05]}  Kc7 {[%clk 0:00:10]} 39. Rh8 {[%clk 0:00:03]}  Qd3 {[%clk 0:00:03]} 40. Qb4 {[%clk 0:00:03]}  Rd7 {[%clk 0:00:01]} 41. Qb6+ {[%clk 0:00:01]}  Kd6 {[%clk 0:00:01]} 42. Qb4+ {[%clk 0:00:01]}  c5 {[%clk 0:00:01]} 43. Qb6+ {[%clk 0:00:02]}  Kd5 {[%clk 0:00:02]} 44. Qf6 {[%clk 0:00:01]}  Qd1+ {[%clk 0:00:03]} 45. Kh2 {[%clk 0:00:02]}  Qd4 {[%clk 0:00:03]} 46. Qxg6 {[%clk 0:00:01]}  Rd6 {[%clk 0:00:03]} 47. Qf7+ {[%clk 0:00:01]}  Kc6 {[%clk 0:00:04]} 48. Rc8+ {[%clk 0:00:01]}  Kb5 {[%clk 0:00:04]} 49. Qxb7+ {[%clk 0:00:01]}  Kxa5 {[%clk 0:00:04]} 50. Qc7+ {[%clk 0:00:01]}  Rb6 {[%clk 0:00:04]} 51. Rb8 {[%clk 0:00:01]}  Qb2 {[%clk 0:00:05]} 0-1


[Site "https://www.chess.com"]

[Event "Titled Tuesday Blitz July 20 2021"]
[White "Bayo Milagro, Alvaro"]
[Black "Gracia Alvarez, Gerardo Antonio"]
[WhiteFideId "22275240"]
[BlackFideId "5109124"]
[WhiteElo "2270"]
[BlackElo "2148"]
[Result "1-0"]
[Round "09"]
[TimeControl "180+1"]
[Date "2021.07.21"]
[WhiteClock "0:00:54"]
[BlackClock "0:01:27"]

1. e4 {[%clk 0:03:00]}  c5 {[%clk 0:03:00]} 2. c3 {[%clk 0:02:59]}  Nf6 {[%clk 0:02:58]} 3. e5 {[%clk 0:02:59]}  Nd5 {[%clk 0:02:59]} 4. d4 {[%clk 0:02:59]}  cxd4 {[%clk 0:02:59]} 5. Nf3 {[%clk 0:02:59]}  Nc6 {[%clk 0:02:49]} 6. cxd4 {[%clk 0:02:55]}  d6 {[%clk 0:02:49]} 7. Bc4 {[%clk 0:02:54]}  dxe5 {[%clk 0:02:48]} 8. Nxe5 {[%clk 0:02:54]}  Nxe5 {[%clk 0:02:39]} 9. dxe5 {[%clk 0:02:53]}  Be6 {[%clk 0:02:38]} 10. O-O {[%clk 0:02:51]}  Qa5 {[%clk 0:01:58]} 11. b4 {[%clk 0:01:38]}  Qxb4 {[%clk 0:01:50]} 12. Bxd5 {[%clk 0:01:37]}  Rd8 {[%clk 0:01:51]} 13. Bd2 {[%clk 0:01:36]}  Qd4 {[%clk 0:01:38]} 14. Bxe6 {[%clk 0:01:31]}  fxe6 {[%clk 0:01:37]} 15. Qb3 {[%clk 0:01:08]}  g6 {[%clk 0:01:29]} 16. Bc3 {[%clk 0:01:07]}  Qd3 {[%clk 0:01:29]} 17. Na3 {[%clk 0:00:58]}  Qa6 {[%clk 0:01:27]} 18. Nb5 {[%clk 0:00:54]}  Qxb5 {[%clk 0:01:27]} 1-0


[Site "https://www.chess.com"]

[Event "Titled Tuesday Blitz July 20 2021"]
[White "Buchenau, Frank"]
[Black "Wagner, Dennis"]
[WhiteFideId "4604350"]
[BlackFideId "24650684"]
[WhiteElo "2255"]
[BlackElo "2355"]
[Result "1/2-1/2"]
[Round "09"]
[TimeControl "180+1"]
[Date "2021.07.20"]
[WhiteClock "0:00:19"]
[BlackClock "0:00:07"]

1. e4 {[%clk 0:03:00]}  c5 {[%clk 0:02:53]} 2. Nf3 {[%clk 0:02:59]}  d6 {[%clk 0:02:54]} 3. Bb5+ {[%clk 0:02:59]}  Nd7 {[%clk 0:02:52]} 4. O-O {[%clk 0:02:58]}  a6 {[%clk 0:02:52]} 5. Bd3 {[%clk 0:02:58]}  Ngf6 {[%clk 0:02:52]} 6. Re1 {[%clk 0:02:57]}  e6 {[%clk 0:02:51]} 7. c3 {[%clk 0:02:57]}  b5 {[%clk 0:02:50]} 8. Bc2 {[%clk 0:02:54]}  c4 {[%clk 0:02:49]} 9. b4 {[%clk 0:02:54]}  Bb7 {[%clk 0:02:46]} 10. a4 {[%clk 0:02:53]}  Be7 {[%clk 0:02:41]} 11. Na3 {[%clk 0:02:53]}  O-O {[%clk 0:02:39]} 12. d4 {[%clk 0:02:51]}  cxd3 {[%clk 0:02:20]} 13. Qxd3 {[%clk 0:02:42]}  Bc6 {[%clk 0:01:55]} 14. Bf4 {[%clk 0:02:38]}  e5 {[%clk 0:01:44]} 15. Bg5 {[%clk 0:02:35]}  Qb6 {[%clk 0:01:42]} 16. a5 {[%clk 0:02:31]}  Qb7 {[%clk 0:01:41]} 17. Nh4 {[%clk 0:02:25]}  g6 {[%clk 0:01:33]} 18. c4 {[%clk 0:02:17]}  Rfe8 {[%clk 0:01:11]} 19. cxb5 {[%clk 0:02:08]}  axb5 {[%clk 0:01:12]} 20. Rad1 {[%clk 0:01:53]}  d5 {[%clk 0:01:06]} 21. exd5 {[%clk 0:01:49]}  Nxd5 {[%clk 0:01:06]} 22. Bxe7 {[%clk 0:01:47]}  Rxe7 {[%clk 0:01:07]} 23. Bb3 {[%clk 0:01:16]}  Nf4 {[%clk 0:00:56]} 24. Qd6 {[%clk 0:01:13]}  Bxg2 {[%clk 0:00:49]} 25. f3 {[%clk 0:01:01]}  Rae8 {[%clk 0:00:30]} 26. Nxg2 {[%clk 0:00:43]}  Nh3+ {[%clk 0:00:29]} 27. Kh1 {[%clk 0:00:40]}  Nf2+ {[%clk 0:00:22]} 28. Kg1 {[%clk 0:00:40]}  Qxf3 {[%clk 0:00:22]} 29. Qd5 {[%clk 0:00:19]}  Nh3+ {[%clk 0:00:10]} 30. Kh1 {[%clk 0:00:19]}  Nf2+ {[%clk 0:00:09]} 31. Kg1 {[%clk 0:00:19]}  e4 {[%clk 0:00:10]} 32. Re3 {[%clk 0:00:18]}  Nh3+ {[%clk 0:00:09]} 33. Kh1 {[%clk 0:00:18]}  Nf2+ {[%clk 0:00:09]} 34. Kg1 {[%clk 0:00:18]}  Nh3+ {[%clk 0:00:08]} 35. Kh1 {[%clk 0:00:18]}  Nf2+ {[%clk 0:00:07]} 36. Kg1 {[%clk 0:00:19]} 1/2-1/2


[Site "https://www.chess.com"]

[Event "Titled Tuesday Blitz July 20 2021"]
[White "Derraugh, Geordie"]
[Black "Djordjevic, Dejan N"]
[WhiteFideId "2603950"]
[BlackFideId "913316"]
[WhiteElo "2132"]
[BlackElo "2262"]
[Result "1-0"]
[Round "09"]
[TimeControl "180+1"]
[Date "2021.07.21"]
[WhiteClock "0:00:47"]
[BlackClock "0:00:17"]

1. e4 {[%clk 0:02:57]}  c5 {[%clk 0:02:59]} 2. Nf3 {[%clk 0:02:56]}  Nc6 {[%clk 0:02:58]} 3. Bb5 {[%clk 0:02:56]}  g6 {[%clk 0:02:58]} 4. Bxc6 {[%clk 0:02:56]}  dxc6 {[%clk 0:02:58]} 5. d3 {[%clk 0:02:55]}  Bg7 {[%clk 0:02:58]} 6. h3 {[%clk 0:02:55]}  e5 {[%clk 0:02:58]} 7. O-O {[%clk 0:02:55]}  Qc7 {[%clk 0:02:56]} 8. a4 {[%clk 0:02:54]}  a5 {[%clk 0:02:55]} 9. Be3 {[%clk 0:02:53]}  b6 {[%clk 0:02:55]} 10. Na3 {[%clk 0:02:50]}  Rb8 {[%clk 0:02:40]} 11. Nc4 {[%clk 0:02:50]}  Be6 {[%clk 0:02:39]} 12. Qe2 {[%clk 0:02:47]}  h6 {[%clk 0:02:38]} 13. c3 {[%clk 0:02:42]}  Ne7 {[%clk 0:02:03]} 14. Rfb1 {[%clk 0:02:36]}  O-O {[%clk 0:02:00]} 15. b4 {[%clk 0:02:36]}  axb4 {[%clk 0:01:57]} 16. cxb4 {[%clk 0:02:35]}  b5 {[%clk 0:01:23]} 17. axb5 {[%clk 0:02:05]}  cxb5 {[%clk 0:01:23]} 18. Na5 {[%clk 0:01:50]}  c4 {[%clk 0:01:08]} 19. Rc1 {[%clk 0:01:44]}  Rfc8 {[%clk 0:01:06]} 20. Nb3 {[%clk 0:01:14]}  cxd3 {[%clk 0:00:38]} 21. Qxd3 {[%clk 0:00:59]}  Bc4 {[%clk 0:00:34]} 22. Qd2 {[%clk 0:00:54]}  Kh7 {[%clk 0:00:30]} 23. Na5 {[%clk 0:00:51]}  Qd7 {[%clk 0:00:17]} 24. Qxd7 {[%clk 0:00:47]} 1-0


[Site "https://www.chess.com"]

[Event "Titled Tuesday Blitz July 20 2021"]
[White "Dolzhykova, Kateryna"]
[Black "Skatchkov, Valery"]
[WhiteFideId "14113414"]
[BlackFideId "24195812"]
[WhiteElo "2151"]
[BlackElo "2199"]
[Result "0-1"]
[Round "09"]
[TimeControl "180+1"]
[Date "2021.07.21"]
[WhiteClock "0:00:01"]
[BlackClock "0:02:10"]

1. e4 {[%clk 0:03:00]}  e5 {[%clk 0:02:59]} 2. Nf3 {[%clk 0:03:00]}  d5 {[%clk 0:03:00]} 3. Nxe5 {[%clk 0:02:42]}  Bd6 {[%clk 0:03:00]} 4. d4 {[%clk 0:02:37]}  dxe4 {[%clk 0:02:59]} 5. Bc4 {[%clk 0:02:28]}  Bxe5 {[%clk 0:02:58]} 6. dxe5 {[%clk 0:02:29]}  Qxd1+ {[%clk 0:02:58]} 7. Kxd1 {[%clk 0:02:30]}  Nc6 {[%clk 0:02:59]} 8. Bf4 {[%clk 0:02:23]}  Nge7 {[%clk 0:02:59]} 9. Nc3 {[%clk 0:02:20]}  Bf5 {[%clk 0:02:59]} 10. Kc1 {[%clk 0:02:09]}  Ng6 {[%clk 0:02:59]} 11. g3 {[%clk 0:02:08]}  Ncxe5 {[%clk 0:02:58]} 12. Bd5 {[%clk 0:02:05]}  c6 {[%clk 0:02:57]} 13. Bxe4 {[%clk 0:02:04]}  Bxe4 {[%clk 0:02:58]} 14. Nxe4 {[%clk 0:02:05]}  O-O-O {[%clk 0:02:59]} 15. b3 {[%clk 0:02:02]}  Nxf4 {[%clk 0:02:59]} 16. gxf4 {[%clk 0:02:01]}  Nf3 {[%clk 0:02:58]} 17. Ng5 {[%clk 0:02:00]}  Nxg5 {[%clk 0:02:55]} 18. fxg5 {[%clk 0:02:00]}  Rhe8 {[%clk 0:02:56]} 19. Kb2 {[%clk 0:01:49]}  Re2 {[%clk 0:02:56]} 20. f4 {[%clk 0:01:48]}  Rdd2 {[%clk 0:02:57]} 21. Rac1 {[%clk 0:01:47]}  Rf2 {[%clk 0:02:56]} 22. Rhf1 {[%clk 0:01:46]}  Rxc2+ {[%clk 0:02:55]} 23. Rxc2 {[%clk 0:01:44]}  Rxf1 {[%clk 0:02:56]} 24. Re2 {[%clk 0:01:39]}  Rxf4 {[%clk 0:02:56]} 25. Re8+ {[%clk 0:01:39]}  Kd7 {[%clk 0:02:54]} 26. Rg8 {[%clk 0:01:40]}  g6 {[%clk 0:02:52]} 27. Rg7 {[%clk 0:01:40]}  Rf2+ {[%clk 0:02:45]} 28. Ka3 {[%clk 0:01:39]}  Rxh2 {[%clk 0:02:44]} 29. Rxf7+ {[%clk 0:01:36]}  Kc8 {[%clk 0:02:44]} 30. Kb4 {[%clk 0:01:37]}  Rh5 {[%clk 0:02:42]} 31. a4 {[%clk 0:01:33]}  Rxg5 {[%clk 0:02:39]} 32. Rxh7 {[%clk 0:01:32]}  a5+ {[%clk 0:02:39]} 33. Kc4 {[%clk 0:01:31]}  Kb8 {[%clk 0:02:40]} 34. Kc3 {[%clk 0:01:25]}  Ka7 {[%clk 0:02:40]} 35. Kb2 {[%clk 0:01:25]}  Kb6 {[%clk 0:02:40]} 36. Rg7 {[%clk 0:01:25]}  Rg3 {[%clk 0:02:39]} 37. Ka3 {[%clk 0:01:23]}  g5 {[%clk 0:02:40]} 38. Ka2 {[%clk 0:01:24]}  g4 {[%clk 0:02:40]} 39. Kb2 {[%clk 0:01:24]}  Ka6 {[%clk 0:02:39]} 40. Rg6 {[%clk 0:01:24]}  Rg2+ {[%clk 0:02:37]} 41. Ka3 {[%clk 0:01:23]}  Kb6 {[%clk 0:02:37]} 42. Rg7 {[%clk 0:01:23]}  g3 {[%clk 0:02:38]} 43. Rg5 {[%clk 0:01:11]}  Kc7 {[%clk 0:02:27]} 44. Rxa5 {[%clk 0:01:07]}  Re2 {[%clk 0:02:27]} 45. Rg5 {[%clk 0:01:02]}  g2 {[%clk 0:02:28]} 46. b4 {[%clk 0:00:57]}  Kd6 {[%clk 0:02:28]} 47. Kb3 {[%clk 0:00:57]}  Ke6 {[%clk 0:02:29]} 48. Kc3 {[%clk 0:00:56]}  Kf6 {[%clk 0:02:29]} 49. Rg8 {[%clk 0:00:55]}  Kf5 {[%clk 0:02:29]} 50. Kd3 {[%clk 0:00:55]}  Rb2 {[%clk 0:02:24]} 51. Kc3 {[%clk 0:00:54]}  Ra2 {[%clk 0:02:22]} 52. a5 {[%clk 0:00:49]}  Kf4 {[%clk 0:02:22]} 53. Kc4 {[%clk 0:00:45]}  Kf3 {[%clk 0:02:18]} 54. Kc5 {[%clk 0:00:45]}  Rb2 {[%clk 0:02:13]} 55. Rg7 {[%clk 0:00:17]}  Kf2 {[%clk 0:02:12]} 56. Rf7+ {[%clk 0:00:16]}  Ke1 {[%clk 0:02:12]} 57. Re7+ {[%clk 0:00:12]}  Kf1 {[%clk 0:02:11]} 58. Rf7+ {[%clk 0:00:10]}  Rf2 {[%clk 0:02:12]} 59. Rxb7 {[%clk 0:00:02]}  g1=Q {[%clk 0:02:11]} 60. Kxc6 {[%clk 0:00:03]}  Qg2+ {[%clk 0:02:10]} 61. Kb6 {[%clk 0:00:03]}  Rf6+ {[%clk 0:02:11]} 62. Ka7 {[%clk 0:00:04]}  Qf2+ {[%clk 0:02:11]} 63. Rb6 {[%clk 0:00:02]}  Rf7+ {[%clk 0:02:11]} 64. Ka6 {[%clk 0:00:01]}  Qe2+ {[%clk 0:02:10]} 65. b5 {[%clk 0:00:02]}  Qe7 {[%clk 0:02:10]} 66. Rc6 {[%clk 0:00:01]}  Qb7# {[%clk 0:02:10]} 0-1


[Site "https://www.chess.com"]

[Event "Titled Tuesday Blitz July 20 2021"]
[White "Dzhaparov, Medet"]
[Black "Nefedov, Sergey"]
[WhiteFideId "13803689"]
[BlackFideId "24113417"]
[WhiteElo "1702"]
[BlackElo "2385"]
[Result "0-1"]
[Round "09"]
[TimeControl "180+1"]
[Date "2021.07.21"]
[WhiteClock "0:00:01"]
[BlackClock "0:01:27"]

1. d4 {[%clk 0:03:00]}  Nf6 {[%clk 0:02:54]} 2. c4 {[%clk 0:03:00]}  e6 {[%clk 0:02:54]} 3. Nc3 {[%clk 0:03:00]}  d5 {[%clk 0:02:54]} 4. cxd5 {[%clk 0:02:59]}  exd5 {[%clk 0:02:55]} 5. Bg5 {[%clk 0:02:59]}  c6 {[%clk 0:02:55]} 6. e3 {[%clk 0:02:59]}  Nbd7 {[%clk 0:02:50]} 7. Bd3 {[%clk 0:02:58]}  Be7 {[%clk 0:02:50]} 8. Qc2 {[%clk 0:02:58]}  Nh5 {[%clk 0:02:40]} 9. Bxe7 {[%clk 0:02:49]}  Qxe7 {[%clk 0:02:41]} 10. Nge2 {[%clk 0:02:44]}  g6 {[%clk 0:02:40]} 11. g4 {[%clk 0:02:28]}  Ng7 {[%clk 0:02:37]} 12. O-O-O {[%clk 0:02:27]}  h5 {[%clk 0:02:34]} 13. h3 {[%clk 0:02:17]}  Nf6 {[%clk 0:02:34]} 14. g5 {[%clk 0:01:58]}  Nd7 {[%clk 0:02:33]} 15. Nf4 {[%clk 0:01:40]}  Nb6 {[%clk 0:02:24]} 16. h4 {[%clk 0:01:05]}  Bf5 {[%clk 0:02:22]} 17. e4 {[%clk 0:00:46]}  dxe4 {[%clk 0:02:20]} 18. Bxe4 {[%clk 0:00:45]}  O-O-O {[%clk 0:02:18]} 19. Rhe1 {[%clk 0:00:39]}  Qc7 {[%clk 0:02:12]} 20. Ng2 {[%clk 0:00:15]}  Rhe8 {[%clk 0:02:10]} 21. Kb1 {[%clk 0:00:12]}  Qh2 {[%clk 0:01:59]} 22. Rh1 {[%clk 0:00:06]}  Bxe4 {[%clk 0:01:52]} 23. Rxh2 {[%clk 0:00:04]}  Bxc2+ {[%clk 0:01:52]} 24. Kxc2 {[%clk 0:00:05]}  Nf5 {[%clk 0:01:52]} 25. d5 {[%clk 0:00:03]}  Nxd5 {[%clk 0:01:51]} 26. Nxd5 {[%clk 0:00:03]}  Rxd5 {[%clk 0:01:50]} 27. Rxd5 {[%clk 0:00:04]}  cxd5 {[%clk 0:01:51]} 28. Nf4 {[%clk 0:00:04]}  d4 {[%clk 0:01:44]} 29. Rh1 {[%clk 0:00:04]}  Re4 {[%clk 0:01:41]} 30. Nd5 {[%clk 0:00:04]}  Rxh4 {[%clk 0:01:39]} 31. Re1 {[%clk 0:00:04]}  Kd7 {[%clk 0:01:38]} 32. Nf6+ {[%clk 0:00:02]}  Kd6 {[%clk 0:01:38]} 33. Re8 {[%clk 0:00:02]}  Rh2 {[%clk 0:01:38]} 34. Kd3 {[%clk 0:00:01]}  Rxf2 {[%clk 0:01:27]} 0-1


[Site "https://www.chess.com"]

[Event "Titled Tuesday Blitz July 20 2021"]
[White "Efremov, Vladislav"]
[Black "Vivas Zamora, Fabian Ernesto"]
[WhiteFideId "44159935"]
[BlackFideId "3902480"]
[WhiteElo "2022"]
[BlackElo "1966"]
[Result "0-1"]
[Round "09"]
[TimeControl "180+1"]
[Date "2021.07.21"]
[WhiteClock "0:00:04"]
[BlackClock "0:00:04"]

1. d4 {[%clk 0:03:00]}  Nf6 {[%clk 0:02:56]} 2. c4 {[%clk 0:03:00]}  g6 {[%clk 0:02:55]} 3. Nc3 {[%clk 0:03:00]}  d5 {[%clk 0:02:55]} 4. cxd5 {[%clk 0:03:00]}  Nxd5 {[%clk 0:02:56]} 5. e4 {[%clk 0:03:00]}  Nxc3 {[%clk 0:02:56]} 6. bxc3 {[%clk 0:03:01]}  Bg7 {[%clk 0:02:56]} 7. Qa4+ {[%clk 0:03:01]}  Nd7 {[%clk 0:02:42]} 8. Nf3 {[%clk 0:03:00]}  O-O {[%clk 0:02:33]} 9. Be2 {[%clk 0:02:59]}  c5 {[%clk 0:02:21]} 10. O-O {[%clk 0:02:58]}  Nb6 {[%clk 0:02:20]} 11. Qa3 {[%clk 0:02:56]}  cxd4 {[%clk 0:02:16]} 12. cxd4 {[%clk 0:02:57]}  Qd6 {[%clk 0:02:13]} 13. Qxd6 {[%clk 0:02:52]}  exd6 {[%clk 0:02:13]} 14. Ba3 {[%clk 0:02:52]}  Re8 {[%clk 0:02:09]} 15. Bxd6 {[%clk 0:02:31]}  Rxe4 {[%clk 0:02:01]} 16. Bd3 {[%clk 0:02:31]}  Re8 {[%clk 0:01:53]} 17. Be5 {[%clk 0:02:25]}  Be6 {[%clk 0:01:43]} 18. Bxg7 {[%clk 0:02:19]}  Kxg7 {[%clk 0:01:43]} 19. Be4 {[%clk 0:02:19]}  Bd5 {[%clk 0:01:39]} 20. Bxd5 {[%clk 0:02:19]}  Nxd5 {[%clk 0:01:40]} 21. Rab1 {[%clk 0:02:14]}  b6 {[%clk 0:01:36]} 22. Rb3 {[%clk 0:02:06]}  Re2 {[%clk 0:01:32]} 23. a3 {[%clk 0:02:03]}  Rc8 {[%clk 0:01:24]} 24. g3 {[%clk 0:01:48]}  Rcc2 {[%clk 0:01:18]} 25. Rb5 {[%clk 0:01:45]}  Nc7 {[%clk 0:01:06]} 26. Re5 {[%clk 0:01:41]}  Rxe5 {[%clk 0:01:06]} 27. Nxe5 {[%clk 0:01:41]}  Ra2 {[%clk 0:01:04]} 28. Rd1 {[%clk 0:01:37]}  Nd5 {[%clk 0:01:01]} 29. Rd3 {[%clk 0:01:35]}  b5 {[%clk 0:00:55]} 30. Nc6 {[%clk 0:01:33]}  a6 {[%clk 0:00:53]} 31. Rb3 {[%clk 0:00:40]}  Rd2 {[%clk 0:00:17]} 32. Nb8 {[%clk 0:00:36]}  Nc7 {[%clk 0:00:14]} 33. Rc3 {[%clk 0:00:32]}  Ne6 {[%clk 0:00:14]} 34. Nxa6 {[%clk 0:00:31]}  Nxd4 {[%clk 0:00:14]} 35. Rc5 {[%clk 0:00:23]}  h5 {[%clk 0:00:13]} 36. Nc7 {[%clk 0:00:18]}  h4 {[%clk 0:00:07]} 37. gxh4 {[%clk 0:00:18]}  Nf3+ {[%clk 0:00:07]} 38. Kg2 {[%clk 0:00:18]}  Nxh4+ {[%clk 0:00:08]} 39. Kg3 {[%clk 0:00:17]}  Nf5+ {[%clk 0:00:08]} 40. Kg2 {[%clk 0:00:17]}  Ne3+ {[%clk 0:00:08]} 41. Kg3 {[%clk 0:00:13]}  Nf5+ {[%clk 0:00:08]} 42. Kg2 {[%clk 0:00:13]}  Rd3 {[%clk 0:00:05]} 43. Nxb5 {[%clk 0:00:09]}  Nh4+ {[%clk 0:00:05]} 44. Kf1 {[%clk 0:00:05]}  Rd2 {[%clk 0:00:06]} 45. a4 {[%clk 0:00:04]}  Ra2 {[%clk 0:00:05]} 46. Nc3 {[%clk 0:00:04]}  Rc2 {[%clk 0:00:03]} 47. a5 {[%clk 0:00:04]}  Nf5 {[%clk 0:00:03]} 48. a6 {[%clk 0:00:04]}  Rc1+ {[%clk 0:00:03]} 49. Ke2 {[%clk 0:00:04]}  Ra1 {[%clk 0:00:04]} 0-1


[Site "https://www.chess.com"]

[Event "Titled Tuesday Blitz July 20 2021"]
[White "Eynullayev, Atilla"]
[Black "Petriashvili, Nikoloz"]
[WhiteFideId "13413570"]
[BlackFideId "13611216"]
[WhiteElo "1997"]
[BlackElo "2430"]
[Result "0-1"]
[Round "09"]
[TimeControl "180+1"]
[Date "2021.07.20"]
[WhiteClock "0:00:07"]
[BlackClock "0:01:40"]

1. d4 {[%clk 0:03:00]}  Nf6 {[%clk 0:02:31]} 2. c4 {[%clk 0:03:01]}  e6 {[%clk 0:02:30]} 3. Nc3 {[%clk 0:03:01]}  d5 {[%clk 0:02:31]} 4. cxd5 {[%clk 0:03:01]}  exd5 {[%clk 0:02:32]} 5. Bg5 {[%clk 0:03:00]}  Be7 {[%clk 0:02:33]} 6. Qc2 {[%clk 0:03:00]}  c6 {[%clk 0:02:33]} 7. e3 {[%clk 0:03:01]}  Nbd7 {[%clk 0:02:33]} 8. Bd3 {[%clk 0:03:01]}  Nf8 {[%clk 0:02:34]} 9. Nf3 {[%clk 0:03:00]}  Ne6 {[%clk 0:02:34]} 10. Bh4 {[%clk 0:02:59]}  g6 {[%clk 0:02:35]} 11. Ne5 {[%clk 0:02:54]}  Nh5 {[%clk 0:02:35]} 12. Bxe7 {[%clk 0:02:49]}  Qxe7 {[%clk 0:02:36]} 13. g4 {[%clk 0:02:42]}  Nf6 {[%clk 0:02:31]} 14. O-O-O {[%clk 0:02:35]}  Nc5 {[%clk 0:02:29]} 15. Be2 {[%clk 0:02:21]}  Ncd7 {[%clk 0:02:26]} 16. f4 {[%clk 0:02:18]}  Nxe5 {[%clk 0:02:25]} 17. fxe5 {[%clk 0:01:25]}  Nxg4 {[%clk 0:02:25]} 18. e4 {[%clk 0:00:53]}  Ne3 {[%clk 0:02:24]} 19. Qd2 {[%clk 0:00:53]}  Nxd1 {[%clk 0:02:23]} 20. Rxd1 {[%clk 0:00:52]}  Be6 {[%clk 0:02:24]} 21. exd5 {[%clk 0:00:47]}  Bxd5 {[%clk 0:02:24]} 22. Rf1 {[%clk 0:00:41]}  O-O-O {[%clk 0:02:20]} 23. Rf6 {[%clk 0:00:36]}  Qb4 {[%clk 0:02:07]} 24. a3 {[%clk 0:00:28]}  Qa5 {[%clk 0:02:04]} 25. Qf4 {[%clk 0:00:27]}  Be6 {[%clk 0:02:01]} 26. Bg4 {[%clk 0:00:23]}  Qb6 {[%clk 0:01:45]} 27. Rxf7 {[%clk 0:00:20]}  Bxg4 {[%clk 0:01:45]} 28. Qxg4+ {[%clk 0:00:20]}  Kb8 {[%clk 0:01:46]} 29. Rf4 {[%clk 0:00:17]}  Rhf8 {[%clk 0:01:42]} 30. e6 {[%clk 0:00:15]}  Rxf4 {[%clk 0:01:40]} 31. Qxf4+ {[%clk 0:00:15]}  Qc7 {[%clk 0:01:41]} 32. Qe3 {[%clk 0:00:07]}  Qd6 {[%clk 0:01:40]} 33. e7 {[%clk 0:00:07]}  Re8 {[%clk 0:01:40]} 0-1


[Site "https://www.chess.com"]